Workbook

Sheet Result
XFD1: PLAYER
F4: =Variant!R2 -> Vålerenga | L4: =Variant!Y2 -> Rosenborg
B10: PARTY BET | F10: 1 | G10: X | H10: 2 | L10: BEST 10 BETTING
F11: =Variant!Z40 -> 0.4 | G11: =Variant!Z41 -> 0.25 | H11: =Variant!Z42 -> 0.35
L14: 1 | N14: =Variant!AC40 -> 0.95 | O14: =Variant!AE40 -> 0,5 OVER
B15: DOUBLE CHANCE | F15: 1X | G15: 12 | H15: X2 | L15: 2 | N15: =Variant!AC41 -> 0.85 | O15: =Variant!AE41 -> 4,5 UNDER
F16: =Variant!Z57 -> 0.325 | G16: =Variant!Z58 -> 0.375 | H16: =Variant!Z59 -> 0.3 | L16: 3 | N16: =Variant!AC42 -> 0.75 | O16: =Variant!AE42 -> 1,5 OVER
L17: 4 | N17: =Variant!AC43 -> 0.65 | O17: =Variant!AE43 -> 3,5 UNDER
L18: 5 | N18: =Variant!AC44 -> 0.6 | O18: =Variant!AE44 -> BTTS/YES (GG)
L19: 6 | N19: =Variant!AC45 -> 0.6 | O19: =Variant!AE45 -> 2,5 OVER
B20: BTTS ( GG-NG ) | F20: BTTS/YES (GG) | H20: BTTS/NO (NG) | L20: 7 | N20: =Variant!AC46 -> 0.4 | O20: =Variant!AE46 -> BTTS/NO (NG)
F21: =Variant!Z38 -> 0.6 | H21: =Variant!Z39 -> 0.4 | L21: 8 | N21: =Variant!AC47 -> 0.4 | O21: =Variant!AE47 -> 1
L22: 9 | N22: =Variant!AC48 -> 0.4 | O22: =Variant!AE48 -> 2-3
L23: 10 | N23: =Variant!AC49 -> 0.4 | O23: =Variant!AE49 -> 2,5 UNDER
B25: TOTAL GOAL | F25: 0-1 | G25: 2-3 | H25: 4-6 | I25: 7+
F26: =Variant!Z43 -> 0.25 | G26: =Variant!Z44 -> 0.4 | H26: =Variant!Z45 -> 0.25 | I26: =Variant!Z46 -> 0.1
B30: UNDER / OVER | F30: 0,5 UNDER | G30: 0,5 OVER | H30: 1,5 UNDER | I30: 1,5 OVER | J30: 2,5 UNDER | K30: 2,5 OVER | L30: 3,5 UNDER | M30: 3,5 OVER | N30: 4,5 UNDER | O30: 4,5 OVER
F31: =Variant!Z47 -> 0.05 | G31: =Variant!Z48 -> 0.95 | H31: =Variant!Z49 -> 0.25 | I31: =Variant!Z50 -> 0.75 | J31: =Variant!Z51 -> 0.4 | K31: =Variant!Z52 -> 0.6 | L31: =Variant!Z53 -> 0.65 | M31: =Variant!Z54 -> 0.35 | N31: =Variant!Z55 -> 0.85 | O31: =Variant!Z56 -> 0.15
N36: https://annabet.com/en/soccerstats/ | T36: Designed by PLAYER
S38: MOSOFT - Professional Software Systems
B39: The bet is never 100%.
S40: https://annabet.com/en/soccerstats/

Sheet Variant
A1: Previous Games
A2: 2021-05-02 | B2: Friendlies | D2: Vålerenga | E2: 3 - 4 | F2: Tromsø | H2: 2021-05-02 | I2: Friendlies | K2: Ranheim | L2: 2 - 1 | M2: Rosenborg | Q2: =COUNTIF(D2:D11,D2) -> 8 | R2: =IF(MAX(Q2,T2)=Q2,D2,F2) -> Vålerenga | T2: =COUNTIF(F2:F11,F2) -> 1 | X2: =COUNTIF(K2:K11,K2) -> 1 | Y2: =IF(MAX(X2,AA2)=X2,K2,M2) -> Rosenborg | AA2: =COUNTIF(M2:M11,M2) -> 4
A3: 2021-04-28 | B3: Friendlies | D3: Vålerenga | E3: 6 - 1 | F3: Raufoss | H3: 2021-04-28 | I3: Friendlies | K3: Rosenborg | L3: 3 - 0 | M3: Kristiansund | Q3: =IF(D2=R2,D2,"") -> Vålerenga | R3: =IF(LEN(E2)=11,MID(E2,2,1),IF(LEN(E2)=12,MID(E2,2,2),IF(LEN(E2)=8,MID(E2,2,1),MID(E2,2,2)))) -> 3 | S3: =IF(LEN(E2)=11,MID(E2,6,1),IF(LEN(E2)=12,MID(E2,6,3),IF(LEN(E2)=8,MID(E2,6,1),MID(E2,6,3)))) -> 4 | T3: =IF(F2=R2,F2,"") ->  | X3: =IF(K2=Y2,K2,"") ->  | Y3: =IF(LEN(L2)=11,MID(L2,2,1),IF(LEN(L2)=12,MID(L2,2,2),IF(LEN(L2)=8,MID(L2,2,1),MID(L2,2,2)))) -> 2 | Z3: =IF(LEN(L2)=11,MID(L2,6,1),IF(LEN(L2)=12,MID(L2,6,3),IF(LEN(L2)=8,MID(L2,6,1),MID(L2,6,3)))) -> 1 | AA3: =IF(M2=Y2,M2,"") -> Rosenborg
A4: 2021-04-25 | B4: Friendlies | D4: Vålerenga | E4: 3 - 1 | F4: FK Jerv | H4: 2021-04-25 | I4: Friendlies | K4: Rosenborg | L4: 1 - 0 | M4: Tromsø | Q4: =IF(D3=R2,D3,"") -> Vålerenga | R4: =IF(LEN(E3)=11,MID(E3,2,1),IF(LEN(E3)=12,MID(E3,2,2),IF(LEN(E3)=8,MID(E3,2,1),MID(E3,2,2)))) -> 6 | S4: =IF(LEN(E3)=11,MID(E3,6,1),IF(LEN(E3)=12,MID(E3,6,3),IF(LEN(E3)=8,MID(E3,6,1),MID(E3,6,3)))) -> 1 | T4: =IF(F3=R2,F3,"") ->  | X4: =IF(K3=Y2,K3,"") -> Rosenborg | Y4: =IF(LEN(L3)=11,MID(L3,2,1),IF(LEN(L3)=12,MID(L3,2,2),IF(LEN(L3)=8,MID(L3,2,1),MID(L3,2,2)))) -> 3 | Z4: =IF(LEN(L3)=11,MID(L3,6,1),IF(LEN(L3)=12,MID(L3,6,3),IF(LEN(L3)=8,MID(L3,6,1),MID(L3,6,3)))) -> 0 | AA4: =IF(M3=Y2,M3,"") -> 
A5: 2021-04-21 | B5: Friendlies | D5: Vålerenga | E5: 2 - 1 | F5: Sarpsborg 08 | H5: 2021-04-21 | I5: Friendlies | K5: Rosenborg | L5: 2 - 1 | M5: Ranheim | Q5: =IF(D4=R2,D4,"") -> Vålerenga | R5: 3 | S5: 1 | T5: =IF(F4=R2,F4,"") ->  | X5: =IF(K4=Y2,K4,"") -> Rosenborg | Y5: 1 | Z5: 0 | AA5: =IF(M4=Y2,M4,"") -> 
A6: 2021-02-19 | B6: Friendlies | D6: Vålerenga | E6: 1 - 1 | F6: Strømsgodset | H6: 2021-04-17 | I6: Friendlies | K6: Rosenborg | L6: 3 - 0 | M6: Raufoss | Q6: =IF(D5=R2,D5,"") -> Vålerenga | R6: 2 | S6: 1 | T6: =IF(F5=R2,F5,"") ->  | X6: =IF(K5=Y2,K5,"") -> Rosenborg | Y6: 2 | Z6: 1 | AA6: =IF(M5=Y2,M5,"") -> 
A7: 2020-12-22 | B7: Eliteserien | D7: Vålerenga | E7: 4 - 0 | F7: Start Kristian | H7: 2020-12-22 | I7: Eliteserien | K7: Sandefjord | L7: 0 - 0 | M7: Rosenborg | Q7: =IF(D6=R2,D6,"") -> Vålerenga | R7: 1 | S7: 1 | T7: =IF(F6=R2,F6,"") ->  | X7: =IF(K6=Y2,K6,"") -> Rosenborg | Y7: 3 | Z7: 0 | AA7: =IF(M6=Y2,M6,"") -> 
A8: 2020-12-10 | B8: Eliteserien | D8: Viking | E8: 2 - 2 | F8: Vålerenga | H8: 2020-12-13 | I8: Eliteserien | K8: Rosenborg | L8: 3 - 1 | M8: Molde FK | Q8: =IF(D7=R2,D7,"") -> Vålerenga | R8: 4 | S8: 0 | T8: =IF(F7=R2,F7,"") ->  | X8: =IF(K7=Y2,K7,"") ->  | Y8: 0 | Z8: 0 | AA8: =IF(M7=Y2,M7,"") -> Rosenborg
A9: 2020-12-07 | B9: Eliteserien | D9: Vålerenga | E9: 1 - 0 | F9: Rosenborg | H9: 2020-12-10 | I9: Eliteserien | K9: Rosenborg | L9: 1 - 0 | M9: Mjøndalen | Q9: =IF(D8=R2,D8,"") ->  | R9: 2 | S9: 2 | T9: =IF(F8=R2,F8,"") -> Vålerenga | X9: =IF(K8=Y2,K8,"") -> Rosenborg | Y9: 3 | Z9: 1 | AA9: =IF(M8=Y2,M8,"") -> 
A10: 2020-12-02 | B10: Eliteserien | D10: Stabæk | E10: 1 - 1 | F10: Vålerenga | H10: 2020-12-07 | I10: Eliteserien | K10: Vålerenga | L10: 1 - 0 | M10: Rosenborg | Q10: =IF(D9=R2,D9,"") -> Vålerenga | R10: 1 | S10: 0 | T10: =IF(F9=R2,F9,"") ->  | X10: =IF(K9=Y2,K9,"") -> Rosenborg | Y10: 1 | Z10: 0 | AA10: =IF(M9=Y2,M9,"") -> 
A11: 2020-11-29 | B11: Eliteserien | D11: Vålerenga | E11: 1 - 1 | F11: Sarpsborg 08 | H11: 2020-11-29 | I11: Eliteserien | K11: Bodø/Glimt | L11: 5 - 1 | M11: Rosenborg | Q11: =IF(D10=R2,D10,"") ->  | R11: 1 | S11: 1 | T11: =IF(F10=R2,F10,"") -> Vålerenga | X11: =IF(K10=Y2,K10,"") ->  | Y11: 1 | Z11: 0 | AA11: =IF(M10=Y2,M10,"") -> Rosenborg
A12: 1x2 | B12: 5 4 1 24 - 12 | H12: 1x2 | I12: 6 1 3 15 - 10 | Q12: =IF(D11=R2,D11,"") -> Vålerenga | R12: 1 | S12: 1 | T12: =IF(F11=R2,F11,"") ->  | X12: =IF(K11=Y2,K11,"") ->  | Y12: 5 | Z12: 1 | AA12: =IF(M11=Y2,M11,"") -> Rosenborg
A13: % | B13: 50.0% - 40.0% - 10.0% | H13: % | I13: 60.0% - 10.0% - 30.0%
A14: % ⇒ Odds | B14: 2.00 - 2.50 - 10.00 | H14: % ⇒ Odds | I14: 1.67 - 10.00 - 3.33 | R14: ATTIĞI | S14: YEDİĞİ | Y14: ATTIĞI | Z14: YEDİĞİ
A15: 12 | B15: 5 1 24 - 12 | H15: 12 | I15: 6 3 15 - 10 | R15: =IF(Q3="",S3,R3) -> 3 | S15: =IF(T3="",S3,R3) -> 4 | T15: =R15+S15 -> 7 | U15: =IF((R15-S15)>0,"G",IF((R15-S15)=0,"B",IF((R15-S15)<0,"M"))) -> M | Y15: =IF(X3="",Z3,Y3) -> 1 | Z15: =IF(AA3="",Z3,Y3) -> 2 | AA15: =Y15+Z15 -> 3 | AB15: =IF((Y15-Z15)>0,"G",IF((Y15-Z15)=0,"B",IF((Y15-Z15)<0,"M"))) -> M | AD15: =R15+0 -> 3 | AE15: =S15+0 -> 4 | AG15: =Y15+0 -> 1 | AH15: =Z15+0 -> 2 | AI15: =IF(AND(AD15>=1,AE15>=1),"1","0") -> 1 | AJ15: =IF(AND(AG15>=1,AH15>=1),"1","0") -> 1
A16: % | B16: 83.3% - 16.7% | H16: % | I16: 66.7% - 33.3% | R16: =IF(Q4="",S4,R4) -> 6 | S16: =IF(T4="",S4,R4) -> 1 | T16: =R16+S16 -> 7 | U16: =IF((R16-S16)>0,"G",IF((R16-S16)=0,"B",IF((R16-S16)<0,"M"))) -> G | V16: =COUNTIF(U15:U24,"G") -> 5 | W16: =COUNTIF(U15:U24,"B") -> 4 | X16: =COUNTIF(U15:U24,"M") -> 1 | Y16: =IF(X4="",Z4,Y4) -> 3 | Z16: =IF(AA4="",Z4,Y4) -> 0 | AA16: =Y16+Z16 -> 3 | AB16: =IF((Y16-Z16)>0,"G",IF((Y16-Z16)=0,"B",IF((Y16-Z16)<0,"M"))) -> G | AD16: =R16+0 -> 6 | AE16: 1 | AG16: =Y16+0 -> 3 | AH16: =Z16+0 -> 0 | AI16: =IF(AND(AD16>=1,AE16>=1),"1","0") -> 1 | AJ16: =IF(AND(AG16>=1,AH16>=1),"1","0") -> 0
A17: % ⇒ Odds | B17: 1.20 - 5.99 | H17: % ⇒ Odds | I17: 1.50 - 3.00 | R17: 3 | S17: 1 | T17: 4 | U17: G | V17: =COUNTIF(AB15:AB24,"G") -> 6 | W17: =COUNTIF(AB15:AB24,"B") -> 1 | X17: =COUNTIF(AB15:AB24,"M") -> 3 | Y17: 1 | Z17: 0 | AA17: 1 | AB17: G | AD17: 3 | AE17: 1 | AG17: 1 | AH17: 0 | AI17: 1 | AJ17: 0
B18: Total Goals Under - Over 2.5 : 40% - 60% | I18: Total Goals Under - Over 2.5 : 40% - 60% | R18: 2 | S18: 1 | T18: 3 | U18: G | Y18: 2 | Z18: 1 | AA18: 3 | AB18: G | AD18: 2 | AE18: 1 | AG18: 2 | AH18: 1 | AI18: 1 | AJ18: 1
A19: Goals For | D19: Goals Against | H19: Goals For | K19: Goals Against | R19: 1 | S19: 1 | T19: 2 | U19: B | Y19: 3 | Z19: 0 | AA19: 3 | AB19: G | AD19: 1 | AE19: 1 | AG19: 3 | AH19: 0 | AI19: 1 | AJ19: 0
A20: 0 | C20: 0 | E20: 0.2 | H20: 0.2 | J20: 0 | L20: 0.5 | R20: 4 | S20: 0 | T20: 4 | U20: G | Y20: 0 | Z20: 0 | AA20: 0 | AB20: B | AD20: 4 | AE20: 0 | AG20: 0 | AH20: 0 | AI20: 0 | AJ20: 0
A21: 0.4 | C21: 1 | E21: 0.6 | H21: 0.4 | J21: 1 | L21: 0.3 | R21: 2 | S21: 2 | T21: 4 | U21: B | Y21: 3 | Z21: 1 | AA21: 4 | AB21: G | AD21: 2 | AE21: 2 | AG21: 3 | AH21: 1 | AI21: 1 | AJ21: 1
A22: 0.2 | C22: 2 | E22: 0.1 | H22: 0.1 | J22: 2 | L22: 0.1 | R22: 1 | S22: 0 | T22: 1 | U22: G | Y22: 1 | Z22: 0 | AA22: 1 | AB22: G | AD22: 1 | AE22: 0 | AG22: 1 | AH22: 0 | AI22: 0 | AJ22: 0
A23: 0.2 | C23: 3 | E23: 0 | H23: 0.3 | J23: 3 | L23: 0 | R23: 1 | S23: 1 | T23: 2 | U23: B | Y23: 0 | Z23: 1 | AA23: 1 | AB23: M | AD23: 1 | AE23: 1 | AG23: 0 | AH23: 1 | AI23: 1 | AJ23: 0
A24: 0.1 | C24: 4 | E24: 0.1 | H24: 0 | J24: 4 | L24: 0 | R24: 1 | S24: 1 | T24: 2 | U24: B | Y24: 1 | Z24: 5 | AA24: 6 | AB24: M | AD24: 1 | AE24: 1 | AG24: 1 | AH24: 5 | AI24: 1 | AJ24: 1
A25: 0 | C25: 5 | E25: 0 | H25: 0 | J25: 5 | L25: 0.1
A26: 0.1 | C26: 6+ | E26: 0 | H26: 0 | J26: 6+ | L26: 0 | R26: =(R15+R16+R17+R18+R19+R20+R21+R22+R23+R24)/10 -> 2.4 | S26: =(S15+S16+S17+S18+S19+S20+S21+S22+S23+S24)/10 -> 1.2 | Y26: =(Y15+Y16+Y17+Y18+Y19+Y20+Y21+Y22+Y23+Y24)/10 -> 1.5 | Z26: =(Z15+Z16+Z17+Z18+Z19+Z20+Z21+Z22+Z23+Z24)/10 -> 1
A28: Both Teams To Score: 80% | H28: Both Teams To Score: 40% | Q28: KG VAR | R28: KG YOK | T28: G | U28: B | V28: M | X28: 0-1 | Y28: 2-3 | Z28: 4-6 | AA28: 7+ | AC28: =IF(AND(T15>=2,T15<=3),1,0) -> 0 | AD28: =IF(AND(AA15>=2,AA15<=3),1,0) -> 1 | AF28: =IF(AND(T15>=4,T15<=6),1,0) -> 0 | AG28: =IF(AND(AA15>=4,AA15<=6),1,0) -> 0 | AI28: =IF(T15>=7,1,0) -> 1 | AJ28: =IF(AA15>=7,1,0) -> 0
A29: Goal difference | H29: Goal difference | Q29: =AVERAGE(COUNTIF(AI15:AI24,"1"),COUNTIF(AJ15:AJ24,"1"))/10 -> 0.6 | R29: =AVERAGE(COUNTIF(AI15:AI24,"0"),COUNTIF(AJ15:AJ24,"0"))/10 -> 0.4 | T29: =AVERAGE(V16,X17)/10 -> 0.4 | U29: =AVERAGE(W16,W17)/10 -> 0.25 | V29: =AVERAGE(X16,V17)/10 -> 0.35 | X29: =AVERAGE(COUNTIF(T15:T24,"<=1"),COUNTIF(AA15:AA24,"<=1"))/10 -> 0.25 | Y29: =AVERAGE(COUNTIF(AC28:AC37,"1"),COUNTIF(AD28:AD37,"1"))/10 -> 0.4 | Z29: =AVERAGE(COUNTIF(AF28:AF37,"1"),COUNTIF(AG28:AG37,"1"))/10 -> 0.25 | AA29: =AVERAGE(COUNTIF(AI28:AI37,"1"),COUNTIF(AJ28:AJ37,"1"))/10 -> 0.1 | AC29: =IF(AND(T16>=2,T16<=3),1,0) -> 0 | AD29: 1 | AF29: =IF(AND(T16>=4,T16<=6),1,0) -> 0 | AG29: 0 | AI29: =IF(T16>=7,1,0) -> 1 | AJ29: 0
A30: 2 | E30: 0.1 | H30: 2 | L30: 0.1 | AC30: 0 | AD30: 0 | AF30: 1 | AG30: 0 | AI30: 0 | AJ30: 0
A31: 1 | E31: 0.2 | H31: 1 | L31: 0.3 | Y31: 10 | Z31: 12 | AA31: O2 | AC31: 1 | AD31: 1 | AF31: 0 | AG31: 0 | AI31: 0 | AJ31: 0
A32: 0 | E32: 0.4 | H32: 0 | L32: 0.1 | Q32: 0,5 ALT | R32: =COUNTIF(T15:T24,"<1")/10 -> 0 | S32: 0,5 ALT | T32: =COUNTIF(AA15:AA24,"<1")/10 -> 0.1 | V32: 0,5 ALT | W32: =AVERAGE(R32,T32) -> 0.05 | Y32: =AVERAGE((V16+W16),(W17+X17))/20 -> 0.325 | Z32: =AVERAGE((V16+X17),(V17+X16))/20 -> 0.375 | AA32: =AVERAGE((X16+W16),(W17+V17))/20 -> 0.3 | AC32: 1 | AD32: 1 | AF32: 0 | AG32: 0 | AI32: 0 | AJ32: 0
A33: -1 | E33: 0.1 | H33: -1 | L33: 0.2 | Q33: 0,5 ÜST | R33: =COUNTIF(T15:T24,">=1")/10 -> 1 | S33: 0,5 ÜST | T33: =COUNTIF(AA15:AA24,">=1")/10 -> 0.9 | V33: 0,5 ÜST | W33: =AVERAGE(R33,T33) -> 0.95 | AC33: 0 | AD33: 0 | AF33: 1 | AG33: 0 | AI33: 0 | AJ33: 0
A34: -2 | E34: 0 | H34: -2 | L34: 0 | Q34: 1,5 ALT | R34: =COUNTIF(T15:T24,"<2")/10 -> 0.1 | S34: 1,5 ALT | T34: =COUNTIF(AA15:AA24,"<2")/10 -> 0.4 | V34: 1,5 ALT | W34: 0.25 | AC34: 0 | AD34: 0 | AF34: 1 | AG34: 1 | AI34: 0 | AJ34: 0
A35: Regulation Time | H35: Regulation Time | Q35: 1,5 ÜST | R35: =COUNTIF(T15:T24,">=2")/10 -> 0.9 | S35: 1,5 ÜST | T35: =COUNTIF(AA15:AA24,">=2")/10 -> 0.6 | V35: 1,5 ÜST | W35: 0.75 | AC35: 0 | AD35: 0 | AF35: 0 | AG35: 0 | AI35: 0 | AJ35: 0
A36: Goal Average 2.40 - 1.20 (3.60) | H36: Goal Average 1.50 - 1.00 (2.50) | Q36: 2,5 ALT | R36: =COUNTIF(T15:T24,"<3")/10 -> 0.4 | S36: 2,5 ALT | T36: =COUNTIF(AA15:AA24,"<3")/10 -> 0.4 | V36: 2,5 ALT | W36: 0.4 | AC36: 1 | AD36: 0 | AF36: 0 | AG36: 0 | AI36: 0 | AJ36: 0
Q37: 2,5 ÜST | R37: =COUNTIF(T15:T24,">=3")/10 -> 0.6 | S37: 2,5 ÜST | T37: =COUNTIF(AA15:AA24,">=3")/10 -> 0.6 | V37: 2,5 ÜST | W37: 0.6 | AC37: 1 | AD37: 0 | AF37: 0 | AG37: 1 | AI37: 0 | AJ37: 0
Q38: 3,5 ALT | R38: =COUNTIF(T15:T24,"<4")/10 -> 0.5 | S38: 3,5 ALT | T38: =COUNTIF(AA15:AA24,"<4")/10 -> 0.8 | V38: 3,5 ALT | W38: 0.65 | X38: =RANK(Z38,$Z$38:$Z$59,0)+COUNTIF($Z$38:Z38,Z38)-1 -> 5 | Y38: BTTS/YES (GG) | Z38: =Q29 -> 0.6
Q39: 3,5 ÜST | R39: =COUNTIF(T15:T24,">=4")/10 -> 0.5 | S39: 3,5 ÜST | T39: =COUNTIF(AA15:AA24,">=4")/10 -> 0.2 | V39: 3,5 ÜST | W39: 0.35 | X39: =RANK(Z39,$Z$38:$Z$59,0)+COUNTIF($Z$38:Z39,Z39)-1 -> 7 | Y39: BTTS/NO (NG) | Z39: =R29 -> 0.4
Q40: 4,5 ALT | R40: =COUNTIF(T15:T24,"<5")/10 -> 0.8 | S40: 4,5 ALT | T40: =COUNTIF(AA15:AA24,"<5")/10 -> 0.9 | V40: 4,5 ALT | W40: 0.85 | X40: =RANK(Z40,$Z$38:$Z$59,0)+COUNTIF($Z$38:Z40,Z40)-1 -> 8 | Y40: 1 | Z40: =T29 -> 0.4 | AC40: =MAX(Z38:Z59) -> 0.95 | AD40: =COUNTIF(Z38:Z59,AC40) -> 1 | AE40: =VLOOKUP(AF40,$X$38:$Z$59,2,0) -> 0,5 OVER | AF40: 1 | AH40: =VLOOKUP(AF40,$Z$38:$AA$59,2) -> 0 | AN40: =COUNTIF(Z38:Z59,Z38)&Z38 -> 20,6
Q41: 4,5 ÜST | R41: =COUNTIF(T15:T24,">=5")/10 -> 0.2 | S41: 4,5 ÜST | T41: =COUNTIF(AA15:AA24,">=5")/10 -> 0.1 | V41: 4,5 ÜST | W41: 0.15 | X41: =RANK(Z41,$Z$38:$Z$59,0)+COUNTIF($Z$38:Z41,Z41)-1 -> 16 | Y41: X | Z41: =U29 -> 0.25 | AC41: =LARGE(Z38:Z59,2) -> 0.85 | AD41: =COUNTIF(Z38:Z59,AC41) -> 1 | AE41: =VLOOKUP(AF41,$X$38:$Z$59,2,0) -> 4,5 UNDER | AF41: 2 | AH41: =VLOOKUP(AF41,$Z$38:$AA$59,2) -> 0 | AN41: 40,4
Q42: 5,5 ALT | R42: =COUNTIF(T15:T24,"<6")/10 -> 0.8 | S42: 5,5 ALT | T42: =COUNTIF(AA15:AA24,"<6")/10 -> 0.9 | V42: 5,5 ALT | W42: 0.85 | X42: =RANK(Z42,$Z$38:$Z$59,0)+COUNTIF($Z$38:Z42,Z42)-1 -> 12 | Y42: 2 | Z42: =V29 -> 0.35 | AC42: =LARGE(Z38:Z59,3) -> 0.75 | AD42: =COUNTIF(Z38:Z59,AC42) -> 1 | AE42: 1,5 OVER | AF42: 3 | AH42: 0 | AN42: 30,4
Q43: 5,5 ÜST | R43: =COUNTIF(T15:T24,">=6")/10 -> 0.2 | S43: 5,5 ÜST | T43: =COUNTIF(AA15:AA24,">=6")/10 -> 0.1 | V43: 5,5 ÜST | W43: 0.15 | X43: =RANK(Z43,$Z$38:$Z$59,0)+COUNTIF($Z$38:Z43,Z43)-1 -> 17 | Y43: 0-1 | Z43: =X29 -> 0.25 | AC43: =LARGE(Z38:Z59,4) -> 0.65 | AD43: =COUNTIF(Z38:Z59,AC43) -> 1 | AE43: 3,5 UNDER | AF43: 4 | AH43: 0 | AN43: 40,25
Q44: 6,5 ALT | R44: =COUNTIF(T15:T24,"<7")/10 -> 0.8 | S44: 6,5 ALT | T44: =COUNTIF(AA15:AA24,"<7")/10 -> 1 | V44: 6,5 ALT | W44: 0.9 | X44: =RANK(Z44,$Z$38:$Z$59,0)+COUNTIF($Z$38:Z44,Z44)-1 -> 9 | Y44: 2-3 | Z44: =Y29 -> 0.4 | AC44: =LARGE(Z38:Z59,5) -> 0.6 | AD44: =COUNTIF(Z38:Z59,AC44) -> 2 | AE44: =VLOOKUP(AF44,$X$38:$Z$59,2,0) -> BTTS/YES (GG) | AF44: 5 | AH44: 0 | AN44: 20,35
Q45: 6,5 ÜST | R45: =COUNTIF(T15:T24,">=7")/10 -> 0.2 | S45: 6,5 ÜST | T45: =COUNTIF(AA15:AA24,">=7")/10 -> 0 | V45: 6,5 ÜST | W45: 0.1 | X45: =RANK(Z45,$Z$38:$Z$59,0)+COUNTIF($Z$38:Z45,Z45)-1 -> 18 | Y45: 4-6 | Z45: =Z29 -> 0.25 | AC45: =LARGE(Z38:Z59,6) -> 0.6 | AD45: =COUNTIF(Z38:Z59,AC45) -> 2 | AE45: 2,5 OVER | AF45: 6 | AH45: 0 | AN45: 30,25
Q46: 7,5 ALT | R46: =COUNTIF(T15:T24,"<8")/10 -> 1 | S46: 7,5 ALT | T46: =COUNTIF(AA15:AA24,"<8")/10 -> 1 | V46: 7,5 ALT | W46: 1 | X46: =RANK(Z46,$Z$38:$Z$59,0)+COUNTIF($Z$38:Z46,Z46)-1 -> 21 | Y46: 7+ | Z46: =AA29 -> 0.1 | AC46: =LARGE(Z38:Z59,7) -> 0.4 | AD46: =COUNTIF(Z38:Z59,AC46) -> 4 | AE46: BTTS/NO (NG) | AF46: 7 | AH46: 0 | AN46: 20,4
Q47: 7,5 ÜST | R47: =COUNTIF(T15:T24,">=8")/10 -> 0 | S47: 7,5 ÜST | T47: =COUNTIF(AA15:AA24,">=8")/10 -> 0 | V47: 7,5 ÜST | W47: 0 | X47: =RANK(Z47,$Z$38:$Z$59,0)+COUNTIF($Z$38:Z47,Z47)-1 -> 22 | Y47: 0,5 UNDER | Z47: =W32 -> 0.05 | AC47: =LARGE(Z38:Z59,8) -> 0.4 | AD47: =COUNTIF(Z38:Z59,AC47) -> 4 | AE47: 1 | AF47: 8 | AH47: 0 | AN47: 20,25
X48: =RANK(Z48,$Z$38:$Z$59,0)+COUNTIF($Z$38:Z48,Z48)-1 -> 1 | Y48: 0,5 OVER | Z48: =W33 -> 0.95 | AC48: =LARGE(Z38:Z59,9) -> 0.4 | AD48: =COUNTIF(Z38:Z59,AC48) -> 4 | AE48: 2-3 | AF48: 9 | AH48: 0 | AN48: 10,1
X49: =RANK(Z49,$Z$38:$Z$59,0)+COUNTIF($Z$38:Z49,Z49)-1 -> 19 | Y49: 1,5 UNDER | Z49: 0.25 | AC49: =LARGE(Z38:Z59,10) -> 0.4 | AD49: =COUNTIF(Z38:Z59,AC49) -> 4 | AE49: 2,5 UNDER | AF49: 10 | AH49: 0 | AN49: 10,05
X50: =RANK(Z50,$Z$38:$Z$59,0)+COUNTIF($Z$38:Z50,Z50)-1 -> 3 | Y50: 1,5 OVER | Z50: 0.75 | AN50: 10,95
X51: =RANK(Z51,$Z$38:$Z$59,0)+COUNTIF($Z$38:Z51,Z51)-1 -> 10 | Y51: 2,5 UNDER | Z51: 0.4 | AN51: 10,25
X52: =RANK(Z52,$Z$38:$Z$59,0)+COUNTIF($Z$38:Z52,Z52)-1 -> 6 | Y52: 2,5 OVER | Z52: 0.6 | AN52: 10,75
X53: =RANK(Z53,$Z$38:$Z$59,0)+COUNTIF($Z$38:Z53,Z53)-1 -> 4 | Y53: 3,5 UNDER | Z53: 0.65 | AN53: 10,4
X54: =RANK(Z54,$Z$38:$Z$59,0)+COUNTIF($Z$38:Z54,Z54)-1 -> 13 | Y54: 3,5 OVER | Z54: 0.35 | AN54: 10,6
X55: =RANK(Z55,$Z$38:$Z$59,0)+COUNTIF($Z$38:Z55,Z55)-1 -> 2 | Y55: 4,5 UNDER | Z55: 0.85 | AN55: 10,65
X56: =RANK(Z56,$Z$38:$Z$59,0)+COUNTIF($Z$38:Z56,Z56)-1 -> 20 | Y56: 4,5 OVER | Z56: =W41 -> 0.15 | AN56: 10,35
X57: =RANK(Z57,$Z$38:$Z$59,0)+COUNTIF($Z$38:Z57,Z57)-1 -> 14 | Y57: 1X | Z57: =Y32 -> 0.325 | AN57: 10,85
X58: =RANK(Z58,$Z$38:$Z$59,0)+COUNTIF($Z$38:Z58,Z58)-1 -> 11 | Y58: 12 | Z58: =Z32 -> 0.375 | AN58: 10,15
X59: =RANK(Z59,$Z$38:$Z$59,0)+COUNTIF($Z$38:Z59,Z59)-1 -> 15 | Y59: X2 | Z59: =AA32 -> 0.3 | AN59: 10,325
AN60: 10,375
AN61: 10,3
